Cogmind - Beta 11.1 @@@ ROGUE MODE // 2022.05.10 @ 00:58:07 Player: Olga Result: Self-destructed Performance ------------- Evolutions (2) 1000 Regions Visited (7) 1400 Robots Destroyed (24) 120 Value Destroyed (827) 827 Prototype IDs (0) 0 Alien Tech Used (0) 0 Bonus (0) 0 TOTAL SCORE: 3347 Bonus ------- None Cogmind --------- Core Integrity 476/550 Matter 273/300 Energy 265/265 System Corruption 4% Temperature Cool (0) Movement Rolling (100) Location -8/Materials Parts ------- > --- POWER (1) -------- Improved Ion Engine > --- PROPULSION (4) --- Compact Wheel Compact Wheel Compact Wheel Compact Wheel > --- UTILITY (4) ------ Improved Heat Sink Large Storage Unit High-powered Tractor Beam > --- WEAPON (2) ------- High-powered Shotgun High-powered Shotgun > --- INVENTORY (15) --- Light Treads High-capacity Matter Pod (200) High-capacity Matter Pod (200) Signal Interpreter Improved Terrain Scanner Shotgun High-powered Shotgun Grenade Launcher Grenade Launcher Grenade Launcher Peak State ------------ > --- POWER ------------ Improved Ion Engine > --- PROPULSION ------- Compact Wheel Compact Wheel Compact Wheel Compact Wheel > --- UTILITY ---------- Improved Heat Sink Large Storage Unit Hardened Light Armor Plating High-powered Tractor Beam > --- WEAPON ----------- High-powered Shotgun High-powered Shotgun > --- INVENTORY -------- Compact Wheel Compact Wheel High-capacity Matter Pod High-capacity Matter Pod Signal Interpreter Improved Terrain Scanner Shotgun High-powered Shotgun Grenade Launcher Grenade Launcher Grenade Launcher [Rating: 21] Favorites ----------- Power Light Nuclear Core Engine Ion Engine Power Core Light Nuclear Core Propulsion Compact Wheel Treads Light Treads Leg Aluminum Leg Wheel Compact Wheel Utility Large Storage Unit Device High-powered Tractor Beam Storage Large Storage Unit Protection Hardened Light Armor Plating Weapon Shotgun Energy Gun Small Laser Ballistic Gun Shotgun Build | -11 -10 -10 -9 -9 -9 -8 -8 ------- Run | Scr Mat Min Mat Min Exi Min Mat Slots Evolved 4 | . . . 2 . . . 2 Power . | . . . . . . . . Propulsion 2 | . . . 1 . . . 1 Utility 2 | . . . 1 . . . 1 Weapon . | . . . . . . . . Parts Attached 28 | . 9 3 8 . 1 2 5 Power 3 | . 1 1 . . . 1 . Engine 2 | . 1 . . . . 1 . Core 1 | . . 1 . . . . . Reactor . | . . . . . . . . Propulsion 10 | . 2 . 4 . . . 4 Treads 3 | . 2 . . . . . 1 Leg . | . . . . . . . . Wheel 7 | . . . 4 . . . 3 Hover . | . . . . . . . . Flight . | . . . . . . . . Utility 8 | . 3 1 2 . 1 . 1 Device 4 | . 1 1 1 . . . 1 Storage 3 | . 2 . . . 1 . . Processor . | . . . . . . . . Hackware . | . . . . . . . . Protection 1 | . . . 1 . . . . Artifact . | . . . . . . . . Weapon 7 | . 3 1 2 . . 1 . Energy Gun . | . . . . . . . . Energy Cannon . | . . . . . . . . Ballistic Gun 7 | . 3 1 2 . . 1 . Ballistic Cannon . | . . . . . . . . Launcher . | . . . . . . . . Special Weapon . | . . . . . . . . Impact Weapon . | . . . . . . . . Slashing Weapon . | . . . . . . . . Piercing Weapon . | . . . . . . . . Special Melee Weapon . | . . . . . . . . Unidentified Prototypes . | . . . . . . . . Parts Lost 4 | . . . . . . 1 3 Power 1 | . . . . . . 1 . Propulsion 2 | . . . . . . . 2 Utility 1 | . . . . . . . 1 Weapon . | . . . . . . . . Highest Loss Streak 2 | . . . . . . 1 2 To Critical Strikes . | . . . . . . . . Average Slot Usage (%) 96 | . 90 100 96 100 100 98 94 Engine 4 | . 14 1 . . . 9 9 Core 7 | . . 12 11 11 11 . . Treads 12 | . 24 28 5 . . . 1 Wheel 16 | . . . 25 33 33 33 29 Device 10 | . 4 14 11 11 11 11 18 Storage 12 | . 14 14 11 11 11 11 9 Protection 5 | . . . 9 11 11 11 9 Ballistic Gun 24 | . 26 28 22 22 22 22 18 Naked Turns . | . . . . . . . . Heaviest Build 40 | 12 32 32 37 37 37 39 40 Greatest Support 64 | 20 40 40 48 48 48 48 64 Greatest Overweight (x) 2 | . . . 2 . . . 1 Average Overweight (x) . | . . . . . . . . Largest Inventory Capacity 15 | . 15 15 15 15 15 15 15 Average Capacity 14 | . 10 15 15 15 15 15 15 Most Carried 15 | . 11 15 15 14 15 15 12 Average Carried 12 | . 8 14 14 14 14 13 10 Final Capacity 15 | 8 15 15 15 15 15 15 15 Final Carried 15 | 6 11 15 14 14 15 13 10 Class Distribution -------------------- 100% | Mutant Dominant Class ---------------- Mutant | -10/Materials Mutant | -10/Mines Mutant | -9/Materials Mutant | -9/Mines Mutant | -9/Exiles Mutant | -8/Mines Mutant | -8/Materials Resources | -11 -10 -10 -9 -9 -9 -8 -8 ----------- Run | Scr Mat Min Mat Min Exi Min Mat Matter Collected 1082 | 169 290 196 121 . 116 73 117 Remotely 311 | . . . 121 . . 73 117 Salvage Created 869 | . 337 174 121 . . 120 117 Parts 47 | . 22 9 8 . . 4 4 Haulers Intercepted 1 | . 1 . . . . . . Recyclers Shooed . | . . . . . . . . Parts Field Recycled . | . . . . . . . . Retrieved Matter . | . . . . . . . . Parts Self-Destructed . | . . . . . . . . Prevented . | . . . . . . . . Kills | -11 -10 -10 -9 -9 -9 -8 -8 ------- Run | Scr Mat Min Mat Min Exi Min Mat Combat Hostiles Destroyed 20 | . 6 4 4 . . 3 3 Guns 20 | . 6 4 4 . . 3 3 Classes Destroyed 7 | . 3 1 1 . . 1 1 Builder 2 | . 2 . . . . . . Tunneler 1 | . . 1 . . . . . Hauler 1 | . 1 . . . . . . Grunt 16 | . 6 4 2 . . 2 2 Brawler 1 | . . . . . . . 1 Duelist 1 | . . . . . . 1 . Sentry 2 | . . . 2 . . . . Best Kill Streak 3 | . 3 3 3 . . 3 3 Combat Bots Only 3 | . 3 2 3 . . 3 3 Max Kills in Single Turn 2 | . 1 1 1 . . 2 1 Gunslinging 1 | . . . . . . 1 . Exploded . | . . . . . . . . Melee . | . . . . . . . . Uniques/NPCs Destroyed . | . . . . . . . . Combat | -11 -10 -10 -9 -9 -9 -8 -8 -------- Run | Scr Mat Min Mat Min Exi Min Mat Damage Taken 1495 | . 362 216 223 . . 289 405 Core 243 | . 10 35 49 . . 75 74 Absorbed by Shields . | . . . . . . . . Core Remaining (%) 83 | 100 . 82 . . . 69 . Volleys Fired 68 | . 20 14 15 . . 6 13 Largest 2 | . 2 2 2 . . 2 2 Hottest 50 | . 46 46 50 . . 50 50 Shots Fired 136 | . 40 28 30 . . 12 26 Gun 136 | . 40 28 30 . . 12 26 Cannon . | . . . . . . . . Launcher . | . . . . . . . . Special . | . . . . . . . . Kinetic 136 | . 40 28 30 . . 12 26 Thermal . | . . . . . . . . Explosive . | . . . . . . . . Electromagnetic . | . . . . . . . . Robot Hit Streak 10 | . 9 10 5 . . 4 3 Robot Miss Streak 4 | . 2 4 3 . . 4 4 Penetration Max . | . . . . . . . . Secondary Targets 4 | . . 1 2 . . 1 . Max Gunslinging Chain 1 | . . 1 1 . . 1 . Shots Hit Robots 108 | . 35 21 25 . . 9 18 Core Hits 53 | . 18 11 7 . . 8 9 Critical Kills 1 | . 1 . . . . . . Critical Parts Destroyed 1 | . 1 . . . . . . Critical Strikes 2 | . 2 . . . . . . Destroy 2 | . 2 . . . . . . Melee Attacks . | . . . . . . . . Impact . | . . . . . . . . Slashing . | . . . . . . . . Piercing . | . . . . . . . . Sneak Attacks . | . . . . . . . . Combat Hostiles . | . . . . . . . . Follow-up Attacks . | . . . . . . . . Damage Inflicted 1800 | . 526 270 482 . . 201 321 Guns 1800 | . 526 270 482 . . 201 321 Cannons . | . . . . . . . . Explosions . | . . . . . . . . Melee . | . . . . . . . . Ramming . | . . . . . . . . Kinetic 1800 | . 526 270 482 . . 201 321 Thermal . | . . . . . . . . Explosive . | . . . . . . . . Electromagnetic . | . . . . . . . . Impact . | . . . . . . . . Slashing . | . . . . . . . . Piercing . | . . . . . . . . Highest Corruption 4 | . . . . . . . 4 Average Corruption 4 | . . . . . . . 4 Corruption Purged . | . . . . . . . . Corruption Blocked . | . . . . . . . . Effects 1 | . . . . . . . 1 Matter Fused 1 | . . . . . . . 1 Overload Shots . | . . . . . . . . Overflow Damage . | . . . . . . . . Projectiles . | . . . . . . . . Explosions . | . . . . . . . . Melee . | . . . . . . . . Knockbacks . | . . . . . . . . Impact . | . . . . . . . . Kinetic . | . . . . . . . . Secondary . | . . . . . . . . Self-Inflicted Damage . | . . . . . . . . Shots . | . . . . . . . . Rammed . | . . . . . . . . Targets Rammed . | . . . . . . . . Kicked . | . . . . . . . . Crushed . | . . . . . . . . Highest Temperature 92 | . 4 12 60 . . 92 18 Average Temperature 28 | . 1 6 29 . . 57 13 Received Heat Transfer 756 | . 174 144 87 . . 126 225 Siege Activations . | . . . . . . . . Robots Corrupted . | . . . . . . . . Combat Hostiles . | . . . . . . . . Parts Fried . | . . . . . . . . Impact Corruptions . | . . . . . . . . Robots Melted . | . . . . . . . . Combat Hostiles . | . . . . . . . . Parts Melted . | . . . . . . . . Heat Transferred . | . . . . . . . . Parts Sabotaged . | . . . . . . . . Parts Stolen . | . . . . . . . . Parts Stripped . | . . . . . . . . Power Chain Reactions . | . . . . . . . . Missiles Intercepted . | . . . . . . . . Alert | -11 -10 -10 -9 -9 -9 -8 -8 ------- Run | Scr Mat Min Mat Min Exi Min Mat Peak Influence 206 | . 206 184 118 45 . 75 79 Initial 79 | . . 79 . 45 . . 29 Average 86 | . 104 131 38 45 . 71 51 Maximum Alert Level 1 | . 1 . . . . . . Low Security (%) 95 | . 82 100 100 100 . 100 100 Level 1 4 | . 17 . . . . . . Level 2 . | . . . . . . . . Level 3 . | . . . . . . . . Level 4 . | . . . . . . . . Level 5 . | . . . . . . . . High Security . | . . . . . . . . Max Security . | . . . . . . . . Squads Dispatched 2 | . 2 . . . . . . Investigation 1 | . 1 . . . . . . Extermination . | . . . . . . . . Reinforcement 1 | . 1 . . . . . . Assault . | . . . . . . . . Garrison . | . . . . . . . . Intercept . | . . . . . . . . Searches Triggered . | . . . . . . . . Construction Impeded . | . . . . . . . . Haulers Reinforced . | . . . . . . . . Active Scanning Responses . | . . . . . . . . Cargo Convoy Interrupts . | . . . . . . . . Stealth | -11 -10 -10 -9 -9 -9 -8 -8 --------- Run | Scr Mat Min Mat Min Exi Min Mat Distress Signals 1 | . . . 1 . . . . Communications Jammed . | . . . . . . . . Distress Signals . | . . . . . . . . Times Spotted 28 | . 9 4 4 . . 3 8 Peak Tracking Total 5 | . 4 2 3 . . 3 5 Tactical Retreats . | . . . . . . . . Traps | -11 -10 -10 -9 -9 -9 -8 -8 ------- Run | Scr Mat Min Mat Min Exi Min Mat Traps Triggered 2 | . 2 . . . . . . Indirectly . | . . . . . . . . Trap Hack Attempts . | . . . . . . . . Triggered . | . . . . . . . . Disarmed . | . . . . . . . . Reprogrammed . | . . . . . . . . Reused . | . . . . . . . . Traps Extracted . | . . . . . . . . Installed . | . . . . . . . . Triggered . | . . . . . . . . Machines | -11 -10 -10 -9 -9 -9 -8 -8 ---------- Run | Scr Mat Min Mat Min Exi Min Mat Machines Disabled . | . . . . . . . . Max in Single Turn . | . . . . . . . . Machines Sabotaged . | . . . . . . . . Garrisons Compromised . | . . . . . . . . Overloaded Fab Kills . | . . . . . . . . Hacking | -11 -10 -10 -9 -9 -9 -8 -8 --------- Run | Scr Mat Min Mat Min Exi Min Mat Machines Accessed 3 | . 2 . . . . . 1 Terminals 2 | . 2 . . . . . . Fabricators . | . . . . . . . . Repair Stations . | . . . . . . . . Recycling Units 1 | . . . . . . . 1 Scanalyzers . | . . . . . . . . Garrison Access . | . . . . . . . . Total Hacks 9 | . 7 . . . . . 2 Successful 6 | . 4 . . . . . 2 Failed 3 | . 3 . . . . . . Catastrophic . | . . . . . . . . Database Lockouts . | . . . . . . . . Manual 7 | . 7 . . . . . . Terminals 7 | . 7 . . . . . . Fabricators . | . . . . . . . . Repair Stations . | . . . . . . . . Recycling Units 2 | . . . . . . . 2 Scanalyzers . | . . . . . . . . Garrison Access . | . . . . . . . . Terminal Hacks 1 | . 1 . . . . . . Robot Analysis 1 | . 1 . . . . . . Fabricator Hacks . | . . . . . . . . Repair Station Hacks . | . . . . . . . . Recycling Unit Hacks 2 | . . . . . . . 2 Retrieve Matter 1 | . . . . . . . 1 Retrieve Components 1 | . . . . . . . 1 Scanalyzer . | . . . . . . . . Garrison Access Hacks . | . . . . . . . . Unauthorized Hacks 3 | . 3 . . . . . . Terminals 3 | . 3 . . . . . . Track 1 | . 1 . . . . . . Botnet 2 | . 2 . . . . . . Fabricators . | . . . . . . . . Repair Stations . | . . . . . . . . Recycling Units . | . . . . . . . . Scanalyzers . | . . . . . . . . Garrison Access . | . . . . . . . . Data Cores Recovered . | . . . . . . . . Used . | . . . . . . . . Hacking Detections 2 | . 2 . . . . . . Full Trace Events . | . . . . . . . . Feedback Events . | . . . . . . . . Feedback Blocked . | . . . . . . . . Robot Schematics Acquired . | . . . . . . . . Robots Built . | . . . . . . . . Authchips . | . . . . . . . . Time . | . . . . . . . . Total Robot Build Rating . | . . . . . . . . Part Schematics Acquired . | . . . . . . . . Parts Built . | . . . . . . . . Authchips . | . . . . . . . . Time . | . . . . . . . . Total Part Build Rating . | . . . . . . . . Parts Repaired . | . . . . . . . . Time . | . . . . . . . . Parts Recycled . | . . . . . . . . Recycled Matter . | . . . . . . . . Retrieved Matter . | . . . . . . . . Retrieved Components . | . . . . . . . . Parts Scanalyzed . | . . . . . . . . Part Schematics Acquired . | . . . . . . . . Parts Damaged . | . . . . . . . . Bothacking | -11 -10 -10 -9 -9 -9 -8 -8 ------------ Run | Scr Mat Min Mat Min Exi Min Mat Used RIF Installer . | . . . . . . . . Robots Hacked . | . . . . . . . . Non-combat . | . . . . . . . . Combat . | . . . . . . . . Robot Hacks Applied . | . . . . . . . . Relay Couplers Released . | . . . . . . . . Fabnet Peak Effective % . | . . . . . . . . Robots Rewired . | . . . . . . . . Allies Hacked . | . . . . . . . . Hacks Repelled . | . . . . . . . . Allies | -11 -10 -10 -9 -9 -9 -8 -8 -------- Run | Scr Mat Min Mat Min Exi Min Mat Total Allies . | . . . . . . . . Largest Group . | . . . . . . . . Highest-Rated Group . | . . . . . . . . Highest-Rated Ally . | . . . . . . . . Total Orders . | . . . . . . . . Ally Attacks . | . . . . . . . . Total Damage . | . . . . . . . . Kills . | . . . . . . . . Allies Corrupted . | . . . . . . . . Allies Melted . | . . . . . . . . Intel | -11 -10 -10 -9 -9 -9 -8 -8 ------- Run | Scr Mat Min Mat Min Exi Min Mat Robot Analysis Total 1 | . 1 . . . . . . Derelict Logs Recovered 2 | . . 1 . 1 . . . Drone Launches . | . . . . . . . . Drone Recoveries . | . . . . . . . . Exploration | -11 -10 -10 -9 -9 -9 -8 -8 ------------- Run | Scr Mat Min Mat Min Exi Min Mat Turns Passed 1774 | . 387 408 295 98 278 187 121 Spaces Moved 1182 | 1 196 224 165 90 276 165 65 Core . | . . . . . . . . Treads 419 | . 154 224 36 . . . 5 Legs 43 | 1 42 . . . . . . Wheels 720 | . . . 129 90 276 165 60 Hover . | . . . . . . . . Flight . | . . . . . . . . Fastest Speed 100 | 120 120 160 100 100 100 100 100 Average Speed 122 | 120 151 160 113 100 100 100 111 Slowest Speed 240 | 120 160 160 160 100 100 100 240 Overloaded Moves . | . . . . . . . . Propulsion Burnouts . | . . . . . . . . Robots Hopped . | . . . . . . . . Cave-ins Triggered . | . . . . . . . . Exploration Rate (%) 32 | 2 38 58 14 32 61 46 5 Regions Visited 7 Branch Regions 4 Pre-discovered Areas . | . . . . . . . . Known Exits Taken . | . . . . . . . . Unknown Exits Taken 7 | 1 1 1 1 1 1 1 . Scrap Searched 2 | . . 1 . . . 1 . Spaces Dug . | . . . . . . . . Terrain Destroyed . | . . . . . . . . Melee . | . . . . . . . . Projectile . | . . . . . . . . AOE . | . . . . . . . . Terrain Rammed . | . . . . . . . . Walls Destroyed . | . . . . . . . . Machines Disabled . | . . . . . . . . Actions | -11 -10 -10 -9 -9 -9 -8 -8 --------- Run | Scr Mat Min Mat Min Exi Min Mat Total 1386 | . 247 245 250 98 282 177 87 Wait 57 | . 5 . 39 9 . 2 2 Move 1175 | . 195 223 164 89 275 164 65 Hop . | . . . . . . . . Pick Up 27 | . 9 4 9 . 3 1 1 Fast Attach 11 | . 4 1 5 . . . 1 Attach 4 | . . . . . . 1 3 Detach . | . . . . . . . . Swap 13 | . 5 2 3 . 1 1 1 Drop 31 | . 9 1 15 . 3 2 1 Fire 68 | . 20 14 15 . . 6 13 Melee . | . . . . . . . . Ram . | . . . . . . . . Kick . | . . . . . . . . Crush . | . . . . . . . . Escape Stasis . | . . . . . . . . Rewire . | . . . . . . . . Trap . | . . . . . . . . Miscellaneous . | . . . . . . . . Route ------- -11/Scrapyard -10/Materials -10/Mines -9/Materials -9/Mines -9/Exiles -8/Mines -8/Materials (discovered 1 exit: Fac) History --------- Turn | Location | Event 1 | -11/Scrapyard | Discovered new exit (range 0) 1 | -11/Scrapyard | Entered Materials 311 | -10/Materials | Build established: Mutant 370 | -10/Materials | Discovered new exit (range 12) 388 | -10/Materials | Entered Mines 793 | -10/Mines | Discovered new exit (range 3) 796 | -10/Mines | Entered Materials 796 | -9/Materials | Evolved 2 slots: Propulsion x1, Utility x1 992 | -9/Materials | Discovered new exit (range 15) 1077 | -9/Materials | Met 8R-AWN 1091 | -9/Materials | Entered Mines 1092 | -9/Mines | Followed 8R-AWN into the Mines 1126 | -9/Mines | Learned location of 1 exit from Materials 1185 | -9/Mines | Discovered new exit (range 5) 1189 | -9/Mines | Entered Exiles 1214 | -9/Exiles | Welcomed by 8R-AWN 1230 | -9/Exiles | Met EX-HEX 1260 | -9/Exiles | Met EX-BIN 1365 | -9/Exiles | Met EX-DEC 1458 | -9/Exiles | Discovered new exit (range 10) 1467 | -9/Exiles | Entered Mines 1643 | -8/Mines | Discovered new exit (range 12) 1654 | -8/Mines | Entered Materials 1654 | -8/Materials | Evolved 2 slots: Propulsion x1, Utility x1 1655 | -8/Materials | Identified exit to Factory 1775 | -8/Materials | Self-destructed Last Messages --------------- 01666_ Current location identified: Materials 01693_ Com. Wheel destroyed. 01698_ Critical hit (Burn: +37). 01705_ Com. Wheel destroyed. 01705_ System corrupted by crushing effect (+4). 01705_ Knocked back. 01706_ Critical hit (Burn: +37). 01707_ B-36 Bruiser destroyed. 01708_ Acquired 41 matter. 01715_ System corrupted: Matter fused (-5). 01716_ G-47 Trooper destroyed. 01717_ Acquired 37 matter. 01722_ G-47 Trooper destroyed. 01723_ Acquired 25 matter. 01728_ Acquired Lgt. Treads. 01729_ Acquired 10 matter. 01742_ Acquired 4 matter. 01754_ Acquired Aluminum Leg. 01761_ Dropped Aluminum Leg. 01774_ Hrd. Light Armor Plating destroyed. Map ----- +----------------------------------------------------+ | | | | | | | | | | | | | | | | | | | | | | | | | | | | | | | | | | | | | | | | | | | | | ?????????????????????????????????????????????????? | | ?????????????????????????????????????????????????? | | ?????????????????????########????????????????????? | | ##############?####### = @ #????????????????????? | | #?# # l #????????????????????? | | ### # #????????????????????? | | g #????????????????????? | | ####+########### # #????????????????????? | | #?????#= # #????????????????????? | | ! #?????##* ####g####????????????????????? | | ! #??????# #?? ????????????????????????? | | #??????# #? ????????????????????????? | | [!! ""#??????# #? g????????????????????????? | | [!! Y"#??????# ## ????????????????????????? | | [! ""#??????^ # ????????????????????????? | | #?????# ##+#????????????????????????? | | ##########?????# ??????????????????????????? | | ???????????????# ??????????????????????????? | | ???????????????# ??????????????????????????? | | ???????????????### ??????????????????????????? | | ?????????????????# ?????????????????????????? | | ?????????????????? ?????????????????????????? | | ?????????????????? ??????????????????????????? | | ?????????????????? ##????????????????????????????? | | ?????????????????????????????????????????????????? | | ?????????????????????????????????????????????????? | | ?????????????????????????????????????????????????? | | ?????????????????????????????????????????????????? | +----------------------------------------------------+ Best States ------------- Heat Dissipation 45 Energy Generation 14 Energy Capacity 265 Matter Stores 300 Matter Capacity 300 Sight Range 16 Terrain Scan Density 10 Armor Coverage 150 Evasion (%) 55 Recoil Reduction 2 Item Schematics ----------------- None Robot Schematics ------------------ None Fabricated ------------ Nothing Alien Tech Used ----------------- None Achievements -------------- None Challenges ------------ None Game ------ Seed SupercompositeSalvagePick Manual? 0 Play Time 00:19:19 Cumulative 236.2 hours Start 2022.05.10 @ 00:40:01 End 2022.05.10 @ 00:58:07 Sessions 1 Manual Loads 0 Difficulty Rogue Special Mode None Game No. 332 Rogue 329 Adventurer 0 Explorer 3 Win Type - Total 8 Types 8/0/0/0/0/0/0/0/0 Lore% 69 Gallery% 74 Achievement% 61 Wizard Run 0 Options --------- ASCII 1 Keyboard 0 Movement Vi Keybinds 0 Fullscreen 1 Font 18/SmallcapsGlow Map View 76x50 Tactical HUD 1 Map Filters NONE Filters NONE Steam 1 RUN: d818c544-509d-4db4-8400-2ae525860aa9